bitfinex-derivatives/quotes_SOLF0:USTF0_20240924
["timestamp","ask_amount","ask_price","bid_price","bid_amount"]
[1727214609533,9.33,148.76,148.65,4.64772542]
[1727214609730,9.33,148.76,148.7,9.33]
[1727214609926,3.3617,148.73,148.7,9.33]
[1727214611022,3.3619,148.72,148.7,9.33]
[1727214612030,3.362,148.71,148.7,9.33]
[1727214613328,9.33,148.73,148.63,4.65224106]
[1727214613527,4.0692,148.72,148.67,9.33]
[1727214614227,3.3629,148.68,148.67,9.33]
[1727214615425,3.3629,148.67,148.64,3.3634]
[1727214615625,3.3629,148.67,148.66,9.33]
[1727214615840,3.3629,148.68,148.66,9.33]
[1727214616735,3.3629,148.67,148.66,9.33]
[1727214619336,4.0692,148.72,148.66,9.33]
[1727214619535,4.0692,148.72,148.69,9.33]
[1727214619835,3.3623,148.7,148.69,9.33]
[1727214623445,9.33,148.71,148.66,9.33]
[1727214624136,3.3631,148.67,148.66,9.33]
[1727214624335,9.33,148.71,148.64,4.66181563]
[1727214624535,4.0692,148.72,148.65,9.33]
[1727214624536,3.3633,148.66,148.65,9.33]
[1727214625428,3.3633,148.66,148.62,80.28814207]
[1727214625429,9.33,148.7,148.63,9.33]
[1727214625727,9.33,148.69,148.62,80.28814207]
[1727214625933,9.33,148.67,148.62,89.61814207]
[1727214626132,3.3638,148.63,148.62,89.61814207]
[1727214627633,3.3638,148.63,148.62,80.28814207]
[1727214627937,3.3638,148.63,148.62,89.61814207]
[1727214628446,3.3643,148.61,148.59,3.35744566]
[1727214628638,3.3643,148.61,148.6,9.33]
[1727214628839,3.3643,148.61,148.58,3.365]
[1727214629033,3.3643,148.61,148.6,9.33]
[1727214632638,3.3645,148.6,148.59,3.41858521]
[1727214632838,3.3645,148.6,148.59,9.33]
[1727214633038,3.3645,148.6,148.59,12.62889621]
[1727214633243,3.3645,148.6,148.59,9.33]
[1727214639145,3.3644,148.61,148.59,9.33]
[1727214643959,3.3644,148.61,148.58,6.73749388]
[1727214643960,3.3644,148.61,148.58,3.37259388]
[1727214644145,3.3644,148.61,148.6,9.33]
[1727214646654,3.3649,148.59,148.58,9.33]
[1727214646849,9.33,148.64,148.58,9.33]
[1727214647049,3.3647,148.6,148.58,9.33]
[1727214647354,9.33,148.64,148.58,9.33]
[1727214647950,3.3647,148.59,148.58,9.33]
[1727214655260,3.365,148.58,148.57,80.31575868]
[1727214655557,3.365,148.58,148.57,89.64575868]
[1727214656566,3.365,148.58,148.57,80.31575868]
[1727214656753,3.365,148.58,148.57,89.64575868]
[1727214660459,3.365,148.58,148.57,80.31575868]
[1727214660661,3.365,148.58,148.57,89.64575868]
[1727214661558,3.3655,148.56,148.52,0.9661]
[1727214661765,6.7269,148.65,148.55,9.33]
[1727214661993,9.33,148.64,148.59,9.33]
[1727214662165,3.3645,148.6,148.59,9.33]
[1727214662554,9.33,148.64,148.55,80.32532782]
[1727214662763,3.983,148.66,148.55,80.32532782]
[1727214662764,2.6777,148.66,148.63,9.33]
[1727214662957,2.6777,148.66,148.55,80.32532782]
[1727214662958,1.3734,148.75,148.64,9.33]
[1727214663162,3.3631,148.67,148.66,9.33]
[1727214663363,4.0696,148.75,148.66,9.33]
[1727214663665,9.33,148.72,148.66,9.33]
[1727214663863,3.3624,148.7,148.66,9.33]
[1727214664057,9.33,148.72,148.66,9.33]
[1727214664562,9.33,148.72,148.64,3.35868159]
[1727214664767,9.33,148.72,148.67,9.33]
[1727214664960,3.3624,148.7,148.67,12.6929]
[1727214666260,3.3621,148.71,148.67,12.6929]
[1727214667468,3.3619,148.72,148.68,3.3625]
[1727214667657,3.3619,148.72,148.69,9.33]
[1727214670663,3.362,148.71,148.69,9.33]
[1727214674067,3.362,148.71,148.69,12.6925]
[1727214679271,3.3619,148.72,148.69,12.6925]
[1727214681771,3.3619,148.72,148.7,9.33]
[1727214682578,3.3619,148.72,148.7,12.6922]
[1727214690879,3.3619,148.72,148.7,9.33]
[1727214692586,3.3617,148.73,148.71,9.33]
[1727214694091,3.3615,148.74,148.71,9.33]
[1727214694279,3.3615,148.74,148.7,3.3622]
[1727214694280,3.3615,148.74,148.73,9.33]
[1727214695885,4.0696,148.75,148.69,3.43782894]
[1727214696187,4.0696,148.75,148.72,9.33]
[1727214696383,2.6962,148.75,148.72,9.33]
[1727214697089,2.6962,148.75,148.7,3.32043864]
[1727214697286,2.6962,148.75,148.65,80.27246912]
[1727214697287,2.6962,148.75,148.72,9.33]
[1727214698490,3.3615,148.74,148.72,9.33]
[1727214700591,3.3616,148.73,148.72,9.33]
[1727214700796,2.6962,148.75,148.69,3.42404467]
[1727214700997,2.6962,148.75,148.71,9.33]
[1727214701590,3.3619,148.72,148.71,9.33]
[1727214703706,3.3622,148.71,148.69,3.40283449]
[1727214704000,3.3622,148.71,148.7,9.33]
[1727214705699,3.3623,148.7,148.69,3.37256914]
[1727214705892,3.3623,148.7,148.69,9.33]
[1727214706093,3.3623,148.7,148.69,12.6522397]
[1727214706294,3.3623,148.7,148.69,3.3222397]
[1727214706495,3.3623,148.7,148.69,9.33]
[1727214706804,3.3621,148.71,148.69,12.74202088]
[1727214707003,3.3621,148.71,148.7,9.33]
[1727214708002,4.1048,148.79,148.7,9.33]
[1727214708198,4.1048,148.79,148.73,9.33]
[1727214708403,3.3614,148.74,148.73,9.33]
[1727214708905,3.3614,148.74,148.73,12.62058972]
[1727214709104,3.3614,148.74,148.73,9.28489965]
[1727214709802,4.1048,148.79,148.73,9.33]
[1727214709999,4.1048,148.79,148.71,3.36427209]
[1727214710303,4.1048,148.79,148.74,9.33]
[1727214710496,3.3611,148.75,148.74,9.33]
[1727214711802,3.3614,148.74,148.72,3.40126059]
[1727214712100,3.3614,148.74,148.73,9.33]
[1727214712308,4.1048,148.79,148.71,3.35777275]
[1727214712309,3.3617,148.73,148.71,3.35777275]
[1727214712497,3.3617,148.73,148.72,9.33]
[1727214713506,3.3617,148.73,148.71,3.42032114]
[1727214713701,3.3617,148.73,148.72,9.33]
[1727214718006,3.3615,148.74,148.72,9.33]
[1727214718202,3.3615,148.74,148.73,9.33]
[1727214721202,3.3618,148.73,148.71,3.32582599]
[1727214721505,3.3618,148.73,148.66,80.26720786]
[1727214721707,4.1048,148.79,148.72,9.33]
[1727214721912,3.3614,148.74,148.72,9.33]
[1727214722607,3.3616,148.73,148.72,9.33]
[1727214723606,3.3616,148.73,148.7,3.3621]
[1727214723909,3.3616,148.73,148.72,9.33]
[1727214727412,3.3615,148.74,148.72,9.33]
[1727214727613,3.3615,148.74,148.73,9.33]
[1727214730415,3.3616,148.73,148.7,3.3622]
[1727214730620,3.3616,148.73,148.72,9.33]
[1727214731214,3.3616,148.73,148.7,3.3622]
[1727214731409,3.3616,148.73,148.72,9.33]
[1727214737624,3.3614,148.74,148.72,9.33]
[1727214739227,3.3616,148.73,148.72,9.33]
[1727214742627,4.1048,148.79,148.72,9.33]
[1727214743017,3.3612,148.75,148.72,12.6918]
[1727214744225,3.3615,148.74,148.72,9.33]
[1727214745229,3.3615,148.74,148.71,3.362]
[1727214745725,3.3615,148.74,148.73,9.33]
[1727214747527,3.3611,148.75,148.73,9.33]
[1727214747725,3.3611,148.75,148.74,9.33]
[1727214752438,3.361,148.76,148.74,9.33]
[1727214760641,3.361,148.76,148.73,3.3616]
[1727214760836,3.361,148.76,148.74,9.33]
[1727214761038,3.3611,148.75,148.74,9.33]
[1727214762347,3.361,148.76,148.74,9.33]
[1727214762539,4.1048,148.79,148.67,6.42755067]
[1727214762742,4.1048,148.79,148.68,11.09663281]
[1727214763043,3.361,148.76,148.74,9.33]
[1727214766245,3.3611,148.75,148.74,9.33]
[1727214767245,3.361,148.76,148.74,9.33]
[1727214772345,4.1048,148.79,148.74,12.6912]
[1727214773749,3.3608,148.77,148.74,12.6912]
[1727214778853,3.3609,148.76,148.74,12.6912]
[1727214779255,3.3609,148.76,148.74,9.33]
[1727214780055,4.1048,148.79,148.71,3.3618]
[1727214780251,9.33,148.76,148.71,9.33]
[1727214780551,3.3616,148.73,148.72,9.33]
[1727214780757,4.1048,148.79,148.72,9.33]
[1727214781060,9.33,148.77,148.72,9.33]
[1727214782252,3.3614,148.74,148.72,9.33]
[1727214784152,3.3614,148.74,148.73,9.33]
[1727214785261,3.3614,148.74,148.71,3.3618]
[1727214785463,3.3614,148.74,148.73,9.33]
[1727214786859,3.3614,148.74,148.72,9.33]
[1727214801266,3.3614,148.74,148.7,3.3622]
[1727214801769,3.3616,148.73,148.71,14.00112377]
[1727214801972,3.3616,148.73,148.71,9.33]
[1727214802774,3.3616,148.73,148.7,3.3622]
[1727214802977,3.3616,148.73,148.72,9.33]
[1727214804871,3.3616,148.73,148.7,3.3622]
[1727214805174,3.3614,148.74,148.72,9.33]
[1727214810073,3.3614,148.74,148.71,12.692]
[1727214825793,3.3614,148.74,148.71,3.362]
[1727214825993,3.3614,148.74,148.71,12.692]
[1727214829787,3.3614,148.74,148.71,3.362]
[1727214837797,3.3616,148.73,148.7,3.3622]
[1727214837993,3.3616,148.73,148.7,12.6922]
[1727214838387,3.3616,148.73,148.7,3.3622]
[1727214838598,3.3616,148.73,148.7,12.6922]
[1727214844800,65.51799886,148.78,148.6,6.7289]
[1727214844801,12.62320666,148.74,148.6,6.7289]
[1727214845005,12.1192,148.72,148.66,9.33]
[1727214845208,12.1192,148.72,148.67,11.10201134]
[1727214845402,3.3621,148.71,148.68,4.67162129]
[1727214845599,3.3621,148.71,148.67,3.3627]
[1727214845999,3.3621,148.71,148.67,12.6927]
[1727214846209,3.3621,148.71,148.68,4.67097351]
[1727214846411,3.3621,148.71,148.67,12.6927]
[1727214846615,3.3621,148.71,148.68,4.67118468]
[1727214846813,3.3621,148.71,148.67,12.6927]
[1727214847015,3.3621,148.71,148.68,4.67113718]
[1727214847215,3.3621,148.71,148.67,12.6927]
[1727214851624,3.3624,148.7,148.67,3.3627]
[1727214851816,3.3624,148.7,148.67,12.6927]
[1727214858033,3.3624,148.7,148.68,9.33]
[1727214859229,2.7892,148.72,148.68,9.33]
[1727214859628,3.3621,148.71,148.68,9.33]
[1727214872736,3.3621,148.71,148.67,3.3628]
[1727214872737,3.3624,148.7,148.67,3.3628]
[1727214873038,3.3624,148.7,148.67,12.6928]
[1727214882444,3.3621,148.71,148.68,3.3627]
[1727214890946,3.3623,148.7,148.67,3.3629]
[1727214895444,3.3625,148.69,148.66,3.3631]
[1727214895846,9.33,148.71,148.64,9.33]
[1727214896047,3.3624,148.7,148.66,3.363]
[1727214896447,3.3624,148.7,148.65,9.33]
[1727214897743,3.3624,148.7,148.67,3.3629]
[1727214916862,13.60348095,148.77,148.68,9.33]
[1727214917062,13.60348095,148.77,148.62,79.29625215]
[1727214917063,16.38108095,148.77,148.69,9.33]
[1727214917262,9.33,148.76,148.69,9.33]
[1727214917465,3.3614,148.74,148.7,3.3621]
[1727214917670,9.33,148.76,148.7,3.3621]
[1727214917870,3.3616,148.73,148.7,3.3621]
[1727214923075,3.362,148.72,148.62,79.29625215]
[1727214923374,3.362,148.72,148.68,9.33]
[1727214924172,3.362,148.71,148.68,12.6926]
[1727214927176,3.3619,148.72,148.68,3.3626]
[1727214927678,3.3619,148.72,148.69,3.3624]
[1727214928478,3.3616,148.73,148.7,3.3622]
[1727214935377,3.3618,148.72,148.7,3.3622]
[1727214938472,3.3617,148.73,148.7,3.3622]
[1727214940374,2.7776,148.77,148.7,9.33]
[1727214940682,2.7776,148.77,148.72,9.33]
[1727214940885,1.3662,148.77,148.72,9.33]
[1727214941282,74.84799886,148.78,148.73,9.33]
[1727214941583,74.84799886,148.78,148.75,3.361]
[1727214942878,3.3607,148.77,148.75,3.361]
[1727214951194,3.3607,148.77,148.74,3.3612]
[1727214954796,3.361,148.76,148.74,3.3612]
[1727214954995,65.51799886,148.78,148.74,3.3612]
[1727214955501,3.3607,148.77,148.74,3.3612]
[1727214956601,3.3607,148.77,148.74,12.6912]
[1727214961503,3.361,148.76,148.74,12.6912]
[1727214964402,3.361,148.76,148.68,6.4137456]
[1727214964403,3.3611,148.75,148.73,12.6915]
[1727214972409,3.361,148.76,148.73,12.6915]
[1727214973415,3.3612,148.75,148.73,9.33]
[1727214974713,1.3647,148.8,148.67,0.9583]
[1727214974910,9.33,148.77,148.72,9.33]
[1727214975110,3.3612,148.75,148.72,12.6918]
[1727214985822,9.33,148.78,148.71,12.6919]
[1727214985823,3.3615,148.74,148.71,12.6919]
[1727214988020,9.33,148.75,148.69,9.33]
[1727214988216,1.4013,148.73,148.69,9.33]
[1727214989922,1.4013,148.73,148.68,9.33]
[1727214990310,1.4013,148.73,148.68,12.6926]
[1727214990917,3.362,148.72,148.68,12.6926]
[1727214993725,3.362,148.71,148.68,12.6926]
[1727214993919,1.4013,148.73,148.68,12.6926]
[1727214994917,3.362,148.72,148.68,12.6926]
[1727214997618,3.362,148.72,148.7,9.33]
[1727215001723,3.362,148.71,148.7,9.33]
[1727215002427,3.3619,148.72,148.7,9.33]
[1727215003722,3.3619,148.72,148.69,3.3625]
[1727215007437,3.3619,148.72,148.69,12.6925]
[1727215011539,3.3619,148.72,148.67,3.37346966]
[1727215011733,3.3619,148.72,148.64,0.3983]
[1727215012044,3.3619,148.72,148.69,12.6925]
[1727215016237,3.3619,148.72,148.69,3.3625]
[1727215016545,1.4103,148.74,148.68,9.33]
[1727215016738,1.3798,148.73,148.68,9.33]
[1727215016938,3.3619,148.72,148.68,12.6925]
[1727215018636,3.3619,148.72,148.68,3.3625]
[1727215018836,3.3621,148.71,148.67,3.3629]
[1727215022342,3.3624,148.7,148.67,3.3629]
[1727215022545,10.7098,148.73,148.67,3.3629]
[1727215023139,3.3621,148.71,148.68,3.3627]
[1727215023942,3.3621,148.71,148.67,3.3628]
[1727215024141,3.3621,148.71,148.67,12.6928]
[1727215026340,10.7098,148.73,148.67,12.6928]
[1727215027148,3.3622,148.71,148.67,12.6928]
[1727215036251,3.3622,148.71,148.67,3.3628]
[1727215036549,9.33,148.72,148.66,3.3631]
[1727215036951,3.3624,148.7,148.66,3.3631]
[1727215037550,3.3624,148.7,148.67,3.3629]
[1727215038554,3.3624,148.7,148.66,3.363]
[1727215046253,3.3625,148.69,148.66,3.363]
[1727215046459,9.33,148.7,148.65,3.3632]
[1727215046654,3.3628,148.68,148.65,3.3632]
[1727215047466,3.363,148.67,148.64,12.6935]
[1727215047655,9.33,148.7,148.64,12.6935]
[1727215048860,3.3628,148.68,148.65,3.3634]
[1727215050357,9.33,148.7,148.64,3.3635]
[1727215050358,3.363,148.67,148.64,3.3635]
[1727215052065,3.3632,148.66,148.63,147.61193613]
[1727215057465,12.693,148.67,148.63,147.61193613]
[1727215058264,3.363,148.67,148.64,9.33]
[1727215058468,3.363,148.67,148.63,156.94193613]
[1727215059363,3.3628,148.68,148.64,9.33]
[1727215059858,9.33,148.71,148.65,9.33]
[1727215060767,3.3624,148.7,148.67,3.3629]
[1727215061269,149.31305761,148.72,148.67,9.33]
[1727215061461,149.31305761,148.72,148.69,9.33]
[1727215061776,149.31305761,148.72,148.66,3.38290528]
[1727215061777,3.3608,148.77,148.71,9.33]
[1727215061965,9.33,148.78,148.73,9.33]
[1727215062370,9.33,148.77,148.72,9.33]
[1727215062769,3.3609,148.76,148.73,3.3615]
[1727215062972,12.6909,148.76,148.73,3.3615]
[1727215066267,12.6909,148.76,148.72,3.3617]
[1727215066468,3.3612,148.75,148.72,3.3617]
[1727215066778,9.33,148.74,148.7,3.3621]
[1727215067671,12.6917,148.73,148.69,3.3624]
[1727215068872,3.3618,148.72,148.69,3.3624]
[1727215069479,3.3622,148.71,148.64,0.9552]
[1727215069669,3.3622,148.71,148.67,9.33]
[1727215069974,3.3622,148.71,148.67,3.3629]
[1727215070175,3.3619,148.72,148.66,12.74348883]
[1727215070371,3.3619,148.72,148.68,3.3627]
[1727215078583,3.3619,148.72,148.68,12.6927]
[1727215081686,3.3619,148.72,148.69,3.3625]
[1727215084191,3.3619,148.72,148.68,12.6926]
[1727215088686,3.3619,148.72,148.68,3.3626]
[1727215091598,3.3617,148.73,148.69,9.33]
[1727215091796,3.3617,148.73,148.7,9.33]
[1727215093701,3.3617,148.73,148.7,12.6921]
[1727215108907,4.2083,148.81,148.72,9.33]
[1727215109105,2.7985,148.81,148.77,9.33]
[1727215109310,13.56171026,148.91,148.78,9.33]
[1727215109501,3.3597,148.82,148.78,12.63620775]
[1727215110104,3.3597,148.82,148.78,15.99650775]
[1727215110315,3.3597,148.82,148.78,12.6903]
[1727215110516,9.33,148.83,148.78,9.33]
[1727215110517,3.3598,148.81,148.78,9.33]
[1727215112313,3.3598,148.81,148.77,9.33]
[1727215113814,3.36,148.8,148.77,9.33]
[1727215116317,3.3599,148.81,148.77,12.6906]
[1727215119619,3.3599,148.81,148.76,105.10667139]
[1727215119917,3.9427,148.85,148.77,9.33]
[1727215119918,9.33,148.82,148.77,9.33]
[1727215120113,9.33,148.79,148.76,101.77288668]
[1727215120319,3.3605,148.78,148.76,101.77288668]
[1727215123226,3.3603,148.79,148.76,111.10288668]
[1727215123419,3.3603,148.79,148.76,114.46378668]
[1727215123922,3.3601,148.8,148.76,114.46378668]
[1727215124119,3.3601,148.8,148.78,9.33]
[1727215127018,3.9427,148.85,148.78,9.33]
[1727215127223,3.9427,148.85,148.79,9.33]
[1727215127537,3.3597,148.82,148.79,9.33]
[1727215131225,3.3597,148.82,148.79,12.6902]
[1727215133025,3.3599,148.81,148.79,9.33]
[1727215135728,3.9427,148.85,148.8,9.33]
[1727215136230,3.3592,148.84,148.82,9.33]
[1727215144334,5.9515,148.85,148.82,9.33]
[1727215145135,3.3591,148.84,148.82,9.33]
[1727215156342,153.30927384,148.86,148.81,3.3597]
[1727215156343,3.3589,148.85,148.83,9.33]
[1727215176447,3.3589,148.85,148.82,3.30286328]
[1727215176652,3.3589,148.85,148.81,3.3597]
[1727215176854,3.3589,148.85,148.82,9.33]
[1727215177053,153.30927384,148.86,148.82,9.33]
[1727215177262,9.33,148.89,148.82,12.73603575]
[1727215177556,3.359,148.85,148.82,12.73603575]
[1727215177756,151.88663766,148.89,148.83,9.33]
[1727215178554,151.88663766,148.89,148.77,6.40149772]
[1727215178755,9.33,148.83,148.78,11.05167252]
[1727215179055,9.33,148.83,148.78,9.33]
[1727215180060,3.3599,148.81,148.78,9.33]
[1727215183464,3.3599,148.81,148.79,9.33]
[1727215184660,3.36,148.8,148.79,9.33]
[1727215185652,3.36,148.8,148.76,101.77288668]
[1727215185653,3.36,148.8,148.76,105.13368668]
[1727215185857,3.36,148.8,148.78,9.33]
[1727215186865,3.36,148.8,148.79,9.33]
[1727215190971,3.36,148.8,148.76,105.13368668]
[1727215191169,3.36,148.8,148.79,9.33]
[1727215200772,3.3599,148.81,148.79,9.33]
[1727215201276,6.1307,148.82,148.8,9.33]
[1727215201678,6.1307,148.82,148.81,9.33]
[1727215205785,3.3598,148.81,148.8,9.33]
[1727215206993,1.3883,148.84,148.8,12.69]
[1727215207178,9.33,148.87,148.83,9.33]
[1727215207381,2.6363,148.88,148.84,9.33]
[1727215207590,3.3589,148.86,148.85,9.33]
[1727215207789,1.3067,148.92,148.85,9.33]
[1727215207998,10.6367,148.92,148.87,9.33]
[1727215208291,3.3581,148.89,148.87,9.33]
[1727215208488,2.6843,148.94,148.87,9.33]
[1727215208688,2.6843,148.94,148.9,9.33]
[1727215208890,2.6843,148.94,148.91,9.33]
[1727215209188,3.3572,148.93,148.91,9.33]
[1727215209382,3.3572,148.93,148.9,9.33]
[1727215209587,2.6843,148.94,148.9,9.33]
[1727215209785,2.6843,148.94,148.9,12.6877]
[1727215210180,2.6843,148.94,148.91,9.33]
[1727215210487,3.33198897,149.01,148.93,9.33]
[1727215210690,9.33,148.99,148.94,9.33]
[1727215210993,3.3563,148.97,148.94,9.33]
[1727215211590,3.3563,148.97,148.93,3.357]
[1727215211790,3.3563,148.97,148.94,9.33]
[1727215212588,3.3563,148.97,148.94,12.6868]
[1727215213290,3.356,148.98,148.95,9.33]
[1727215213500,9.33,149.0,148.95,12.6865]
[1727215213789,13.52590912,149.08,148.99,9.33]
[1727215213999,9.33,149.05,148.99,9.33]
[1727215214495,9.33,149.05,148.99,12.6857]
[1727215214693,9.33,149.06,149.01,9.33]
[1727215214897,1.3716,149.07,149.01,9.33]
[1727215215091,10.7016,149.07,149.02,9.33]
[1727215215297,3.3545,149.05,149.02,9.33]
[1727215215895,10.7016,149.07,149.02,9.33]
[1727215216196,53.38833627,150.05,148.97,3.2962938]
[1727215216197,6.7019,149.21,149.03,9.33]
[1727215216497,9.33,149.1,149.03,9.33]
[1727215216693,3.3537,149.08,149.05,9.33]
[1727215217193,7.00552423,149.3,148.97,3.2962938]
[1727215217194,80.6,149.26,149.07,9.33]
[1727215217394,4.0982,149.16,149.08,9.33]
[1727215217689,9.33,149.14,149.08,9.33]
[1727215217897,4.0982,149.16,149.08,12.6835]
[1727215217898,3.3526,149.13,149.08,12.6835]
[1727215218095,3.3526,149.13,148.97,338.0]
[1727215218392,3.3526,149.13,149.09,9.33]
[1727215219193,3.3528,149.12,149.09,9.33]
[1727215219393,9.33,149.13,149.06,3.28356706]
[1727215219604,4.0982,149.16,148.97,338.0]
[1727215219795,9.33,149.06,148.97,338.0]
[1727215219996,4.0982,149.16,148.93,0.5509]
[1727215219997,9.33,149.05,149.0,9.33]
[1727215220697,9.33,149.05,148.93,0.5509]
[1727215220902,9.33,149.05,148.99,9.33]
[1727215221100,9.33,149.04,148.99,9.33]
[1727215221897,3.3552,149.02,148.99,9.33]
[1727215222105,2.7547,149.16,148.93,0.5509]
[1727215222311,3.3539,149.08,149.04,14.49]
[1727215223098,14.49,149.15,149.06,14.49]
[1727215223301,3.9792,149.14,149.04,14.49]
[1727215223501,3.3536,149.09,149.04,17.8444]
[1727215224011,14.49,149.19,149.08,14.49]
[1727215224299,14.49,149.19,149.0,14.49]
[1727215224300,14.49,149.19,149.1,14.49]
[1727215225093,6.6983,149.29,149.12,14.49]
[1727215225293,2.7235,149.22,149.12,14.49]
[1727215225693,10.03890256,149.29,149.15,14.49]
[1727215225900,14.49,149.28,149.17,14.49]
[1727215226709,14.49,149.29,149.17,14.49]
[1727215227005,69.31046882,149.37,149.22,14.49]
[1727215227308,14.49,149.34,149.22,14.49]
[1727215227496,14.49,149.34,149.23,3.3503]
[1727215229598,14.49,149.34,149.24,14.49]
[1727215229795,14.49,149.34,149.24,17.84]
[1727215230903,14.49,149.29,149.18,45.98821062]
[1727215231104,14.49,149.27,149.16,80.54]
[1727215231409,14.49,149.27,149.19,3.3512]
[1727215231611,1.2992,149.28,149.19,14.49]
[1727215232014,1.3398,149.27,149.19,14.49]
[1727215232407,3.3505,149.23,149.19,14.49]
[1727215232710,3.3505,149.23,149.19,17.8412]
[1727215233008,1.3398,149.27,149.19,17.8412]
[1727215233009,1.3398,149.27,149.19,14.49]
[1727215233210,1.3398,149.27,149.19,17.8412]
[1727215234316,6.6949,149.36,149.21,14.49]
[1727215234614,18.5325,149.34,149.24,14.49]
[1727215234809,3.3493,149.28,149.24,14.49]
[1727215235608,3.3493,149.28,149.24,17.8399]
[1727215236005,3.3491,149.29,149.24,14.49]
[1727215236718,3.3491,149.29,149.25,3.3498]
[1727215237417,3.3491,149.29,149.26,14.49]
[1727215237609,3.3488,149.3,149.26,17.8396]
[1727215238713,3.3481,149.33,149.28,14.49]
[1727215238911,2.7186,149.34,149.28,14.49]
[1727215239815,15.9126,149.41,149.32,14.49]
[1727215240019,2.6878,149.4,149.32,14.49]
[1727215240822,3.3478,149.35,149.32,14.49]
[1727215241009,2.6878,149.4,149.32,14.49]
[1727215242023,3.3479,149.34,149.32,14.49]
[1727215242216,2.6878,149.4,149.32,14.49]
[1727215242454,3.3473,149.37,149.32,14.49]
[1727215242808,3.3473,149.37,149.33,3.348]
[1727215243007,2.6878,149.4,149.32,14.49]
[1727215243422,3.3477,149.35,149.32,14.49]
[1727215244417,2.6878,149.4,149.33,3.348]
[1727215244714,15.469945,149.49,149.39,14.49]
[1727215244911,14.49,149.47,149.39,14.49]
[1727215245519,3.3459,149.43,149.39,14.49]
[1727215246425,4.164,149.48,149.38,23.13]
[1727215247122,3.3455,149.45,149.4,3.3463]
[1727215247626,4.164,149.48,149.41,23.13]
[1727215247815,2.8103,149.48,149.41,23.13]
[1727215248210,0.979945,149.49,149.41,23.13]
[1727215249113,0.979945,149.49,149.41,26.4763]
[1727215249620,0.979945,149.49,149.41,23.13]
[1727215249817,3.3456,149.45,149.41,23.13]
[1727215250720,0.979945,149.49,149.41,23.13]
[1727215251116,3.3456,149.44,149.41,23.13]
[1727215252714,0.979945,149.49,149.35,142.39039914]
[1727215253018,0.979945,149.49,149.36,23.13]
[1727215253212,3.3469,149.39,149.36,23.13]
[1727215253721,0.979945,149.49,149.36,23.13]
[1727215254415,0.979945,149.49,149.36,26.4773]
[1727215254923,3.3468,149.39,149.36,23.13]
[1727215255122,0.979945,149.49,149.36,23.13]
[1727215255324,6.6895,149.48,149.36,23.13]
[1727215255525,3.3471,149.38,149.36,23.13]
[1727215256118,3.3472,149.37,149.36,23.13]
[1727215256522,3.3484,149.32,149.23,0.9217]
[1727215256721,23.13,149.44,149.3,23.13]
[1727215256920,14.28886311,149.43,149.3,23.13]
[1727215257129,10.8621,149.43,149.3,23.13]